[Event "*** Titled Tuesday Blitz"]
[Site "Chess.com"]
[Date "2020.05.19"]
[Round "3"]
[White "14Sokol88"]
[Black "yarosavich"]
[Result "0-1"]
[WhiteElo "2419"]
[BlackElo "2689"]
[TimeControl "180+1"]
[EndTime "12:31:08 PDT"]
[Termination "yarosavich won on time"]

1. e4 {[%clk 0:03:00.9]} 1... e5 {[%clk 0:02:59.7]} 2. Nf3 {[%clk 0:03:00.6]}
2... Nc6 {[%clk 0:02:59.3]} 3. Nc3 {[%clk 0:03:00.4]} 3... Nf6 {[%clk
0:02:59.1]} 4. d4 {[%clk 0:03:00.4]} 4... exd4 {[%clk 0:02:58.4]} 5. Nxd4 {[%clk
0:03:01.3]} 5... Bb4 {[%clk 0:02:58.2]} 6. Nxc6 {[%clk 0:03:00.2]} 6... bxc6
{[%clk 0:02:58.8]} 7. Bd3 {[%clk 0:02:59.8]} 7... O-O {[%clk 0:02:59.1]} 8. O-O
{[%clk 0:02:58.3]} 8... d5 {[%clk 0:02:59.6]} 9. exd5 {[%clk 0:02:57.3]} 9...
cxd5 {[%clk 0:03:00.2]} 10. Bg5 {[%clk 0:02:56.8]} 10... c6 {[%clk 0:02:56]} 11.
Qf3 {[%clk 0:02:56.1]} 11... Be7 {[%clk 0:02:54.8]} 12. h3 {[%clk 0:02:49.6]}
12... Rb8 {[%clk 0:02:53]} 13. b3 {[%clk 0:02:47.1]} 13... Be6 {[%clk
0:02:51.1]} 14. Ne2 {[%clk 0:02:34]} 14... h6 {[%clk 0:02:48.8]} 15. Bh4 {[%clk
0:02:26]} 15... Re8 {[%clk 0:02:35.8]} 16. Nd4 {[%clk 0:02:20.6]} 16... Qd7
{[%clk 0:02:24.6]} 17. Nf5 {[%clk 0:02:13.4]} 17... Bxf5 {[%clk 0:02:13.9]} 18.
Bxf5 {[%clk 0:02:13.1]} 18... Qc7 {[%clk 0:02:11.8]} 19. Rfe1 {[%clk 0:02:05.5]}
19... Ne4 {[%clk 0:01:56.8]} 20. Bxe4 {[%clk 0:01:52.2]} 20... Bxh4 {[%clk
0:01:51.4]} 21. Bd3 {[%clk 0:01:51.7]} 21... g6 {[%clk 0:01:33.2]} 22. c4 {[%clk
0:01:31.7]} 22... Re5 {[%clk 0:01:20.4]} 23. g3 {[%clk 0:01:18.6]} 23... Be7
{[%clk 0:01:14.6]} 24. cxd5 {[%clk 0:01:12.6]} 24... cxd5 {[%clk 0:01:14]} 25.
Rac1 {[%clk 0:01:10.1]} 25... Rxe1+ {[%clk 0:01:08]} 26. Rxe1 {[%clk 0:01:09.2]}
26... Bb4 {[%clk 0:00:53.2]} 27. Rd1 {[%clk 0:00:50.3]} 27... Rd8 {[%clk
0:00:03.7]} 28. Kg2 {[%clk 0:00:47.4]} 28... d4 {[%clk 0:00:04]} 29. Bc4 {[%clk
0:00:45.1]} 29... Kg7 {[%clk 0:00:04.2]} 30. Qe4 {[%clk 0:00:35.4]} 30... Bc3
{[%clk 0:00:04.6]} 31. Rd3 {[%clk 0:00:35.2]} 31... Qd6 {[%clk 0:00:04.4]} 32.
Rf3 {[%clk 0:00:34]} 32... Rd7 {[%clk 0:00:04.1]} 33. Qe8 {[%clk 0:00:30.7]}
33... Qc7 {[%clk 0:00:02.7]} 34. Qe4 {[%clk 0:00:20.4]} 34... Re7 {[%clk
0:00:03.1]} 35. Qd3 {[%clk 0:00:19.3]} 35... Rd7 {[%clk 0:00:04]} 36. h4 {[%clk
0:00:19.1]} 36... h5 {[%clk 0:00:03.8]} 37. Qe4 {[%clk 0:00:18.1]} 37... Re7
{[%clk 0:00:04.3]} 38. Qd5 {[%clk 0:00:17.2]} 38... Rd7 {[%clk 0:00:04.7]} 39.
Qe4 {[%clk 0:00:16.7]} 39... Re7 {[%clk 0:00:05.3]} 40. Qd5 {[%clk 0:00:12.4]}
40... Qd7 {[%clk 0:00:05.1]} 41. Qxd7 {[%clk 0:00:10.8]} 41... Rxd7 {[%clk
0:00:06]} 42. Rd3 {[%clk 0:00:10.6]} 42... Bb4 {[%clk 0:00:06.2]} 43. Rd1 {[%clk
0:00:10.6]} 43... a5 {[%clk 0:00:06.8]} 44. Kf3 {[%clk 0:00:10.6]} 44... Bc5
{[%clk 0:00:07.2]} 45. Ke4 {[%clk 0:00:09.2]} 45... Kf6 {[%clk 0:00:07.6]} 46.
Kd3 {[%clk 0:00:09.2]} 46... Bb4 {[%clk 0:00:07.2]} 47. Rc1 {[%clk 0:00:08.2]}
47... Bc3 {[%clk 0:00:07.7]} 48. Rc2 {[%clk 0:00:08.1]} 48... Re7 {[%clk
0:00:08.2]} 49. Re2 {[%clk 0:00:08.5]} 49... Rc7 {[%clk 0:00:08.6]} 50. Re4
{[%clk 0:00:07.9]} 50... Ra7 {[%clk 0:00:08.5]} 51. Rf4+ {[%clk 0:00:07.8]}
51... Kg7 {[%clk 0:00:09.2]} 52. a3 {[%clk 0:00:07.9]} 52... f5 {[%clk
0:00:09.1]} 53. a4 {[%clk 0:00:07.7]} 53... Kf6 {[%clk 0:00:09.3]} 54. Rf3
{[%clk 0:00:07.8]} 54... Re7 {[%clk 0:00:08.6]} 55. Kc2 {[%clk 0:00:08.2]} 55...
Re1 {[%clk 0:00:08.3]} 56. Rd3 {[%clk 0:00:08.4]} 56... Ra1 {[%clk 0:00:07.2]}
57. Rd1 {[%clk 0:00:07.7]} 57... Ra2+ {[%clk 0:00:07.1]} 58. Kd3 {[%clk
0:00:08.2]} 58... Rxf2 {[%clk 0:00:08]} 59. Bb5 {[%clk 0:00:06.7]} 59... Ke5
{[%clk 0:00:07.9]} 60. Kc4 {[%clk 0:00:07.2]} 60... Ke4 {[%clk 0:00:07.6]} 61.
Bc6+ {[%clk 0:00:07.3]} 61... Ke3 {[%clk 0:00:08.1]} 62. Kb5 {[%clk 0:00:08.2]}
62... d3 {[%clk 0:00:08]} 63. Kc4 {[%clk 0:00:07.3]} 63... Bb4 {[%clk
0:00:07.9]} 64. Rxd3+ {[%clk 0:00:07.5]} 64... Ke2 {[%clk 0:00:08.5]} 65. Rd4
{[%clk 0:00:08]} 65... Kf1 {[%clk 0:00:07.4]} 66. Rd5 {[%clk 0:00:08.6]} 66...
Rc2+ {[%clk 0:00:07.4]} 67. Kb5 {[%clk 0:00:09.5]} 67... Rc3 {[%clk 0:00:07.5]}
68. Kb6 {[%clk 0:00:09.2]} 68... Rxb3 {[%clk 0:00:07.9]} 69. Rd1+ {[%clk
0:00:09.5]} 69... Ke2 {[%clk 0:00:07.7]} 70. Rc1 {[%clk 0:00:08.8]} 70... Rxg3
{[%clk 0:00:08.1]} 71. Rc2+ {[%clk 0:00:08.3]} 71... Kd3 {[%clk 0:00:08]} 72.
Ra2 {[%clk 0:00:09]} 72... Kd4 {[%clk 0:00:08.5]} 73. Bb5 {[%clk 0:00:09.2]}
73... f4 {[%clk 0:00:08.7]} 74. Rc2 {[%clk 0:00:09.3]} 74... Ke5 {[%clk
0:00:08.7]} 75. Re2+ {[%clk 0:00:08.8]} 75... Kf5 {[%clk 0:00:09.1]} 76. Bd7+
{[%clk 0:00:07.2]} 76... Kf6 {[%clk 0:00:09.6]} 77. Re6+ {[%clk 0:00:06.6]}
77... Kf7 {[%clk 0:00:09.7]} 78. Re4 {[%clk 0:00:06.8]} 78... f3 {[%clk
0:00:09.2]} 79. Rf4+ {[%clk 0:00:06.9]} 79... Ke7 {[%clk 0:00:09]} 80. Bc6
{[%clk 0:00:07.2]} 80... Bd2 {[%clk 0:00:07.1]} 81. Rxf3 {[%clk 0:00:06.6]}
81... Rg4 {[%clk 0:00:05.6]} 82. Bb5 {[%clk 0:00:04.9]} 82... Rxh4 {[%clk
0:00:04.9]} 83. Rd3 {[%clk 0:00:05]} 83... Bb4 {[%clk 0:00:04.9]} 84. Re3+
{[%clk 0:00:04.7]} 84... Kf6 {[%clk 0:00:04.7]} 85. Rf3+ {[%clk 0:00:04.1]}
85... Kg7 {[%clk 0:00:05.2]} 86. Bd3 {[%clk 0:00:03.8]} 86... Rd4 {[%clk
0:00:04.9]} 87. Rg3 {[%clk 0:00:03.5]} 87... Rd6+ {[%clk 0:00:05.8]} 88. Kb5
{[%clk 0:00:03.5]} 88... Rf6 {[%clk 0:00:06.7]} 89. Kc4 {[%clk 0:00:01.5]} 89...
Kh6 {[%clk 0:00:07.2]} 90. Kd5 {[%clk 0:00:01.4]} 90... g5 {[%clk 0:00:07.5]}
0-1

[Event "*** Titled Tuesday Blitz"]
[Site "Chess.com"]
[Date "2020.05.19"]
[Round "3"]
[White "davidkalashian"]
[Black "SaraciNderim"]
[Result "1/2-1/2"]
[WhiteElo "2608"]
[BlackElo "2832"]
[TimeControl "180+1"]
[EndTime "12:31:21 PDT"]
[Termination "Game drawn - insufficient material"]

1. e4 {[%clk 0:03:00.9]} 1... e5 {[%clk 0:02:57.9]} 2. Nf3 {[%clk 0:02:59.6]}
2... Nc6 {[%clk 0:02:58.2]} 3. Bb5 {[%clk 0:02:56.6]} 3... Nf6 {[%clk
0:02:57.7]} 4. O-O {[%clk 0:02:55.3]} 4... Nxe4 {[%clk 0:02:57.5]} 5. Re1 {[%clk
0:02:55]} 5... Nd6 {[%clk 0:02:57.6]} 6. Nxe5 {[%clk 0:02:54.5]} 6... Be7 {[%clk
0:02:57.9]} 7. Bf1 {[%clk 0:02:51.4]} 7... O-O {[%clk 0:02:50.8]} 8. d4 {[%clk
0:02:50.3]} 8... Nf5 {[%clk 0:02:45.5]} 9. d5 {[%clk 0:02:49.8]} 9... Nxe5
{[%clk 0:02:44.2]} 10. Rxe5 {[%clk 0:02:50.7]} 10... d6 {[%clk 0:02:34.2]} 11.
Re1 {[%clk 0:02:50.9]} 11... Bf6 {[%clk 0:02:31.7]} 12. c3 {[%clk 0:02:50.9]}
12... Bd7 {[%clk 0:02:28.7]} 13. Nd2 {[%clk 0:02:51.3]} 13... Re8 {[%clk
0:02:26.9]} 14. Ne4 {[%clk 0:02:49.4]} 14... Be5 {[%clk 0:02:24.9]} 15. Bg5
{[%clk 0:02:42.2]} 15... Bf6 {[%clk 0:00:32.3]} 16. Bxf6 {[%clk 0:02:40]} 16...
gxf6 {[%clk 0:00:32.2]} 17. Qf3 {[%clk 0:02:40.5]} 17... Re5 {[%clk 0:00:20.6]}
18. g4 {[%clk 0:01:54.6]} 18... Nh4 {[%clk 0:00:16]} 19. Qxf6 {[%clk 0:01:55]}
19... Bxg4 {[%clk 0:00:08.8]} 20. Qxd8+ {[%clk 0:01:51.5]} 20... Rxd8 {[%clk
0:00:09.7]} 21. Nf6+ {[%clk 0:01:50.6]} 21... Kg7 {[%clk 0:00:09.9]} 22. Rxe5
{[%clk 0:01:49.6]} 22... Nf3+ {[%clk 0:00:09.9]} 23. Kg2 {[%clk 0:01:45.3]}
23... Nxe5 {[%clk 0:00:10.8]} 24. Nxg4 {[%clk 0:01:44.6]} 24... Nxg4 {[%clk
0:00:11.7]} 25. Re1 {[%clk 0:01:43.9]} 25... Kf8 {[%clk 0:00:10.8]} 26. Bd3
{[%clk 0:01:43]} 26... Nf6 {[%clk 0:00:10.9]} 27. c4 {[%clk 0:01:42.6]} 27...
Re8 {[%clk 0:00:11.1]} 28. Rxe8+ {[%clk 0:01:41.5]} 28... Kxe8 {[%clk 0:00:12]}
29. Kf3 {[%clk 0:01:42.1]} 29... h6 {[%clk 0:00:12.1]} 30. Kf4 {[%clk
0:01:42.1]} 30... Ke7 {[%clk 0:00:12.3]} 31. Kf5 {[%clk 0:01:41.4]} 31... a5
{[%clk 0:00:12.1]} 32. a3 {[%clk 0:01:39.9]} 32... Nd7 {[%clk 0:00:12.3]} 33. f4
{[%clk 0:01:34.9]} 33... Nc5 {[%clk 0:00:12.3]} 34. Bc2 {[%clk 0:01:34.6]} 34...
Nd7 {[%clk 0:00:12.4]} 35. b4 {[%clk 0:01:31.3]} 35... axb4 {[%clk 0:00:13.3]}
36. axb4 {[%clk 0:01:31.9]} 36... Nf6 {[%clk 0:00:14]} 37. Bd3 {[%clk
0:01:29.5]} 37... Ne8 {[%clk 0:00:14]} 38. Kg4 {[%clk 0:01:28.4]} 38... Ng7
{[%clk 0:00:12.7]} 39. h3 {[%clk 0:01:26]} 39... Kf6 {[%clk 0:00:12.9]} 40. Bc2
{[%clk 0:01:23.4]} 40... Ke7 {[%clk 0:00:12.4]} 41. Kf3 {[%clk 0:01:20.7]} 41...
Ne8 {[%clk 0:00:11.8]} 42. Ke4 {[%clk 0:01:17.9]} 42... Kf6 {[%clk 0:00:11.4]}
43. Kd4 {[%clk 0:01:16.3]} 43... Ng7 {[%clk 0:00:11.4]} 44. c5 {[%clk 0:01:14]}
44... Nf5+ {[%clk 0:00:09.5]} 45. Ke4 {[%clk 0:01:03.4]} 45... Ne7 {[%clk
0:00:09]} 46. Ba4 {[%clk 0:00:57.8]} 46... b6 {[%clk 0:00:08.5]} 47. cxb6 {[%clk
0:00:54.9]} 47... cxb6 {[%clk 0:00:08]} 48. Bd7 {[%clk 0:00:55.3]} 48... Ng8
{[%clk 0:00:06.3]} 49. Kd4 {[%clk 0:00:54.4]} 49... Ke7 {[%clk 0:00:06.5]} 50.
Bg4 {[%clk 0:00:50]} 50... Nf6 {[%clk 0:00:06.4]} 51. Bf3 {[%clk 0:00:50.5]}
51... Kd8 {[%clk 0:00:05.3]} 52. Be2 {[%clk 0:00:45.9]} 52... Kc7 {[%clk
0:00:05.4]} 53. Bf3 {[%clk 0:00:45.8]} 53... Kd7 {[%clk 0:00:05.3]} 54. Kc4
{[%clk 0:00:44]} 54... Kc7 {[%clk 0:00:05.4]} 55. Kb5 {[%clk 0:00:42.4]} 55...
Ng8 {[%clk 0:00:05.7]} 56. Bh5 {[%clk 0:00:41.3]} 56... f6 {[%clk 0:00:04.1]}
57. Kc4 {[%clk 0:00:29.6]} 57... Ne7 {[%clk 0:00:04.2]} 58. Kd4 {[%clk
0:00:27.4]} 58... Nf5+ {[%clk 0:00:04.1]} 59. Kd3 {[%clk 0:00:27.3]} 59... Ne7
{[%clk 0:00:04]} 60. Ke4 {[%clk 0:00:24.7]} 60... f5+ {[%clk 0:00:03.9]} 61. Kd4
{[%clk 0:00:24]} 61... b5 {[%clk 0:00:04.8]} 62. Be2 {[%clk 0:00:22.6]} 62...
Kb6 {[%clk 0:00:05.7]} 63. Bd3 {[%clk 0:00:23]} 63... Ka6 {[%clk 0:00:05.8]} 64.
Bc2 {[%clk 0:00:23.1]} 64... Kb6 {[%clk 0:00:06.1]} 65. Bb3 {[%clk 0:00:23.4]}
65... h5 {[%clk 0:00:06.1]} 66. Ke3 {[%clk 0:00:23.6]} 66... h4 {[%clk
0:00:06.3]} 67. Kd4 {[%clk 0:00:23.2]} 67... Ka6 {[%clk 0:00:06.2]} 68. Bc2
{[%clk 0:00:23.4]} 68... Kb6 {[%clk 0:00:06.3]} 69. Bd3 {[%clk 0:00:22.6]} 69...
Ka6 {[%clk 0:00:06]} 70. Bxf5 {[%clk 0:00:20.1]} 70... Nxf5+ {[%clk 0:00:05.5]}
71. Ke4 {[%clk 0:00:20.7]} 71... Ng3+ {[%clk 0:00:04.7]} 72. Kf3 {[%clk
0:00:20.5]} 72... Kb6 {[%clk 0:00:05.3]} 73. Kg4 {[%clk 0:00:20.3]} 73... Ne4
{[%clk 0:00:05.5]} 74. Kxh4 {[%clk 0:00:17.3]} 74... Nf6 {[%clk 0:00:06]} 75.
Kg5 {[%clk 0:00:17.2]} 75... Nxd5 {[%clk 0:00:06.7]} 76. h4 {[%clk 0:00:18.1]}
76... Ne7 {[%clk 0:00:06.3]} 77. h5 {[%clk 0:00:19]} 77... Ng8 {[%clk
0:00:05.7]} 78. f5 {[%clk 0:00:18.9]} 78... d5 {[%clk 0:00:06]} 79. f6 {[%clk
0:00:19.3]} 79... Nxf6 {[%clk 0:00:05.7]} 80. Kxf6 {[%clk 0:00:18.9]} 80... d4
{[%clk 0:00:06.6]} 81. h6 {[%clk 0:00:19]} 81... d3 {[%clk 0:00:07.5]} 82. h7
{[%clk 0:00:19.9]} 82... d2 {[%clk 0:00:08.4]} 83. h8=Q {[%clk 0:00:19.8]} 83...
d1=Q {[%clk 0:00:09.3]} 84. Qb8+ {[%clk 0:00:18.3]} 84... Kc6 {[%clk 0:00:09.3]}
85. Qc8+ {[%clk 0:00:17.4]} 85... Kb6 {[%clk 0:00:09.3]} 86. Qc5+ {[%clk
0:00:16.3]} 86... Ka6 {[%clk 0:00:09.3]} 87. Qc6+ {[%clk 0:00:16.4]} 87... Ka7
{[%clk 0:00:09.4]} 88. Qc7+ {[%clk 0:00:16.7]} 88... Ka6 {[%clk 0:00:08.3]} 89.
Qa5+ {[%clk 0:00:16.9]} 89... Kb7 {[%clk 0:00:09]} 90. Qxb5+ {[%clk 0:00:17.8]}
90... Kc7 {[%clk 0:00:09.9]} 91. Qc5+ {[%clk 0:00:18.2]} 91... Kd7 {[%clk
0:00:09.9]} 92. b5 {[%clk 0:00:17.2]} 92... Qd6+ {[%clk 0:00:09.3]} 93. Qxd6+
{[%clk 0:00:17]} 93... Kxd6 {[%clk 0:00:10.2]} 94. b6 {[%clk 0:00:17.9]} 94...
Kc6 {[%clk 0:00:10.9]} 95. b7 {[%clk 0:00:18.8]} 95... Kxb7 {[%clk 0:00:11.1]}
1/2-1/2

[Event "*** Titled Tuesday Blitz"]
[Site "Chess.com"]
[Date "2020.05.19"]
[Round "3"]
[White "Glidzhian_Gor"]
[Black "Robert_Chessmood"]
[Result "1/2-1/2"]
[WhiteElo "2467"]
[BlackElo "2895"]
[TimeControl "180+1"]
[EndTime "12:33:05 PDT"]
[Termination "Game drawn - insufficient material"]

1. e4 {[%clk 0:03:00.9]} 1... c6 {[%clk 0:02:58.9]} 2. d4 {[%clk 0:03:01.2]}
2... d5 {[%clk 0:02:59.4]} 3. Nc3 {[%clk 0:03:02.1]} 3... dxe4 {[%clk
0:02:58.1]} 4. Nxe4 {[%clk 0:03:03]} 4... Nf6 {[%clk 0:02:58.7]} 5. Ng5 {[%clk
0:03:03.3]} 5... h6 {[%clk 0:02:43.1]} 6. N5f3 {[%clk 0:03:03]} 6... Bf5 {[%clk
0:02:43.4]} 7. Bc4 {[%clk 0:03:02.3]} 7... Nbd7 {[%clk 0:02:41]} 8. Ne2 {[%clk
0:03:02.5]} 8... e6 {[%clk 0:02:41]} 9. O-O {[%clk 0:03:01.8]} 9... Bd6 {[%clk
0:02:40.5]} 10. Ng3 {[%clk 0:03:00.7]} 10... Bh7 {[%clk 0:02:38.2]} 11. Re1
{[%clk 0:03:00.9]} 11... O-O {[%clk 0:02:38.2]} 12. Ne5 {[%clk 0:03:01.2]} 12...
Bxe5 {[%clk 0:02:07.5]} 13. dxe5 {[%clk 0:03:01.3]} 13... Nd5 {[%clk 0:02:07.7]}
14. Qg4 {[%clk 0:03:01.2]} 14... Kh8 {[%clk 0:02:05.1]} 15. Nh5 {[%clk
0:03:00.3]} 15... Rg8 {[%clk 0:02:01.5]} 16. Bb3 {[%clk 0:02:51.7]} 16... Qc7
{[%clk 0:01:53.2]} 17. Qg3 {[%clk 0:02:17.7]} 17... Bg6 {[%clk 0:01:48.3]} 18.
Nf4 {[%clk 0:02:17.6]} 18... Nxf4 {[%clk 0:01:40.8]} 19. Bxf4 {[%clk 0:02:18.5]}
19... Nc5 {[%clk 0:01:39.4]} 20. Rad1 {[%clk 0:02:17.2]} 20... Rad8 {[%clk
0:01:35.3]} 21. Qh4 {[%clk 0:02:01.2]} 21... Kh7 {[%clk 0:01:33]} 22. h3 {[%clk
0:01:51]} 22... Nxb3 {[%clk 0:01:28]} 23. cxb3 {[%clk 0:01:50.9]} 23... Rd5
{[%clk 0:01:25.1]} 24. Rxd5 {[%clk 0:01:43.5]} 24... cxd5 {[%clk 0:01:26]} 25.
Rc1 {[%clk 0:01:43.6]} 25... Qa5 {[%clk 0:01:20.8]} 26. a3 {[%clk 0:01:34.4]}
26... d4 {[%clk 0:01:20]} 27. Qg3 {[%clk 0:01:18.9]} 27... d3 {[%clk 0:01:15.1]}
28. Qe3 {[%clk 0:01:15.8]} 28... Rd8 {[%clk 0:01:09.4]} 29. Qd2 {[%clk
0:01:16.1]} 29... Qd5 {[%clk 0:01:01]} 30. b4 {[%clk 0:01:11]} 30... Rd7 {[%clk
0:01:01.4]} 31. Rc8 {[%clk 0:01:00.5]} 31... a6 {[%clk 0:00:51.6]} 32. h4 {[%clk
0:00:58.1]} 32... Qe4 {[%clk 0:00:47.7]} 33. Rc1 {[%clk 0:00:43.8]} 33... Rd4
{[%clk 0:00:44.6]} 34. Be3 {[%clk 0:00:42.8]} 34... Rc4 {[%clk 0:00:43]} 35.
Rxc4 {[%clk 0:00:42]} 35... Qxc4 {[%clk 0:00:43.9]} 36. Bf4 {[%clk 0:00:37.6]}
36... Qe4 {[%clk 0:00:38.2]} 37. f3 {[%clk 0:00:36.5]} 37... Qd4+ {[%clk
0:00:37.4]} 38. Kh2 {[%clk 0:00:33.7]} 38... h5 {[%clk 0:00:34.3]} 39. Kg3
{[%clk 0:00:32.9]} 39... Qc4 {[%clk 0:00:29.1]} 40. Qc3 {[%clk 0:00:30.9]} 40...
Qd5 {[%clk 0:00:27.8]} 41. Kf2 {[%clk 0:00:29.7]} 41... Qa2 {[%clk 0:00:27.1]}
42. Bd2 {[%clk 0:00:29.5]} 42... Qb1 {[%clk 0:00:26.6]} 43. Kg3 {[%clk
0:00:21.1]} 43... Qa2 {[%clk 0:00:22.4]} 44. Kh2 {[%clk 0:00:20.7]} 44... Qd5
{[%clk 0:00:21.7]} 45. Kg3 {[%clk 0:00:21.2]} 45... Qd7 {[%clk 0:00:21.1]} 46.
Kh2 {[%clk 0:00:21.5]} 46... Qe7 {[%clk 0:00:21.5]} 47. Kg3 {[%clk 0:00:21.9]}
47... Qd8 {[%clk 0:00:21]} 48. Bg5 {[%clk 0:00:22]} 48... Qb6 {[%clk 0:00:19.2]}
49. Bd2 {[%clk 0:00:21.9]} 49... Qb5 {[%clk 0:00:19.4]} 50. Bg5 {[%clk
0:00:21.9]} 50... Qd7 {[%clk 0:00:18.8]} 51. Bd2 {[%clk 0:00:22]} 51... Qd5
{[%clk 0:00:19]} 52. Bg5 {[%clk 0:00:22.1]} 52... b5 {[%clk 0:00:18.9]} 53. Bd2
{[%clk 0:00:22.4]} 53... Qd7 {[%clk 0:00:19.1]} 54. Bg5 {[%clk 0:00:22.7]} 54...
Qb7 {[%clk 0:00:19.2]} 55. Bd2 {[%clk 0:00:23]} 55... Qd5 {[%clk 0:00:19.3]} 56.
Bg5 {[%clk 0:00:23.5]} 56... Bf5 {[%clk 0:00:17.9]} 57. Bd2 {[%clk 0:00:23.4]}
57... Qd7 {[%clk 0:00:17.7]} 58. Bg5 {[%clk 0:00:23.5]} 58... Qa7 {[%clk
0:00:17.9]} 59. Qc5 {[%clk 0:00:21.2]} 59... Qb8 {[%clk 0:00:16.3]} 60. Bd2
{[%clk 0:00:20.6]} 60... f6 {[%clk 0:00:16.3]} 61. Bf4 {[%clk 0:00:20]} 61...
fxe5 {[%clk 0:00:16]} 62. Bxe5 {[%clk 0:00:20.5]} 62... Qe8 {[%clk 0:00:13.6]}
63. Qd4 {[%clk 0:00:18.7]} 63... Qg6+ {[%clk 0:00:13.3]} 64. Kh2 {[%clk
0:00:19]} 64... Qf7 {[%clk 0:00:13.8]} 65. Bf4 {[%clk 0:00:16.6]} 65... Bg6
{[%clk 0:00:13.6]} 66. Bg5 {[%clk 0:00:16.7]} 66... Qc7+ {[%clk 0:00:12.4]} 67.
Kg1 {[%clk 0:00:15.6]} 67... e5 {[%clk 0:00:12.3]} 68. Qc3 {[%clk 0:00:12.9]}
68... Qd6 {[%clk 0:00:10.6]} 69. Qd2 {[%clk 0:00:12.6]} 69... e4 {[%clk
0:00:10.6]} 70. fxe4 {[%clk 0:00:12.5]} 70... Bxe4 {[%clk 0:00:11.5]} 71. Be3
{[%clk 0:00:11.3]} 71... Qd5 {[%clk 0:00:10.8]} 72. Qf2 {[%clk 0:00:11.7]} 72...
Bg6 {[%clk 0:00:10.9]} 73. Bd2 {[%clk 0:00:12.1]} 73... Qe4 {[%clk 0:00:11.1]}
74. Bc3 {[%clk 0:00:12.2]} 74... Qe7 {[%clk 0:00:10.5]} 75. Qd4 {[%clk
0:00:12.3]} 75... Qf7 {[%clk 0:00:10.2]} 76. Kh2 {[%clk 0:00:11.9]} 76... Bf5
{[%clk 0:00:09.7]} 77. Kg1 {[%clk 0:00:12.1]} 77... Qc7 {[%clk 0:00:09.2]} 78.
Kf2 {[%clk 0:00:12]} 78... Bg6 {[%clk 0:00:08.6]} 79. Kg1 {[%clk 0:00:12.2]}
79... Qb7 {[%clk 0:00:09.2]} 80. Kf2 {[%clk 0:00:12.3]} 80... Qf7+ {[%clk
0:00:09.3]} 81. Kg1 {[%clk 0:00:12.6]} 81... Kg8 {[%clk 0:00:09.4]} 82. Kh2
{[%clk 0:00:12.3]} 82... Qe7 {[%clk 0:00:08.8]} 83. Kg1 {[%clk 0:00:12.2]} 83...
Kh7 {[%clk 0:00:08.9]} 84. Kh2 {[%clk 0:00:12.6]} 84... Qc7+ {[%clk 0:00:08.6]}
85. Kg1 {[%clk 0:00:13]} 85... Qb7 {[%clk 0:00:09]} 86. Kh2 {[%clk 0:00:12.9]}
86... Qf7 {[%clk 0:00:09.5]} 87. Kg1 {[%clk 0:00:13.3]} 87... Qc7 {[%clk
0:00:09.8]} 88. Kf2 {[%clk 0:00:13.1]} 88... Bf5 {[%clk 0:00:08.9]} 89. Kg1
{[%clk 0:00:13.3]} 89... Qf7 {[%clk 0:00:09]} 90. Kh2 {[%clk 0:00:13.5]} 90...
Kg8 {[%clk 0:00:08.7]} 91. Kg1 {[%clk 0:00:13.9]} 91... Qd7 {[%clk 0:00:08.3]}
92. Qxd7 {[%clk 0:00:12.8]} 92... Bxd7 {[%clk 0:00:09.2]} 93. Kf2 {[%clk
0:00:13.4]} 93... Kf7 {[%clk 0:00:09.6]} 94. Ke3 {[%clk 0:00:13.9]} 94... Bf5
{[%clk 0:00:10.1]} 95. Bd4 {[%clk 0:00:13.6]} 95... g6 {[%clk 0:00:09.7]} 96.
Kd2 {[%clk 0:00:14.2]} 96... Ke6 {[%clk 0:00:10.1]} 97. Be3 {[%clk 0:00:14.7]}
97... Be4 {[%clk 0:00:10.3]} 98. g3 {[%clk 0:00:14.5]} 98... Kf5 {[%clk
0:00:10.7]} 99. Bf4 {[%clk 0:00:15.2]} 99... Kg4 {[%clk 0:00:11.1]} 100. Be5
{[%clk 0:00:15.5]} 100... g5 {[%clk 0:00:11.1]} 101. hxg5 {[%clk 0:00:15.5]}
101... Kxg5 {[%clk 0:00:12]} 102. Bf4+ {[%clk 0:00:16.1]} 102... Kg4 {[%clk
0:00:12.2]} 103. Be5 {[%clk 0:00:16.5]} 103... Bg6 {[%clk 0:00:12.5]} 104. Bd6
{[%clk 0:00:16.5]} 104... Kf3 {[%clk 0:00:12.9]} 105. Bc7 {[%clk 0:00:16.8]}
105... Ke4 {[%clk 0:00:13.4]} 106. Bb8 {[%clk 0:00:17.3]} 106... Kd5 {[%clk
0:00:13.8]} 107. Bc7 {[%clk 0:00:17.9]} 107... Kc4 {[%clk 0:00:14.1]} 108. Be5
{[%clk 0:00:18.2]} 108... Bf7 {[%clk 0:00:14.1]} 109. Bf6 {[%clk 0:00:18.5]}
109... Be6 {[%clk 0:00:13.8]} 110. Be5 {[%clk 0:00:18.9]} 110... Bg4 {[%clk
0:00:14.2]} 111. Bf6 {[%clk 0:00:19.3]} 111... Be2 {[%clk 0:00:14.5]} 112. Be5
{[%clk 0:00:19.7]} 112... Kd5 {[%clk 0:00:14.6]} 113. Bf6 {[%clk 0:00:20.1]}
113... Ke6 {[%clk 0:00:15]} 114. Bd4 {[%clk 0:00:20.2]} 114... Kf5 {[%clk
0:00:15.2]} 115. Bc5 {[%clk 0:00:20.7]} 115... Ke4 {[%clk 0:00:15.3]} 116. Bd6
{[%clk 0:00:21.2]} 116... Kf3 {[%clk 0:00:15.3]} 117. Be5 {[%clk 0:00:21.4]}
117... Kg2 {[%clk 0:00:15.3]} 118. Bd6 {[%clk 0:00:21.9]} 118... Bf1 {[%clk
0:00:15.8]} 119. Be5 {[%clk 0:00:22.2]} 119... Kf3 {[%clk 0:00:16.2]} 120. Bd6
{[%clk 0:00:22.7]} 120... Be2 {[%clk 0:00:16.7]} 121. Bc7 {[%clk 0:00:22.9]}
121... Ke4 {[%clk 0:00:17.1]} 122. Bb8 {[%clk 0:00:23.4]} 122... Kd5 {[%clk
0:00:17.6]} 123. Bc7 {[%clk 0:00:24]} 123... Kc4 {[%clk 0:00:18]} 124. Be5
{[%clk 0:00:24.4]} 124... Kb3 {[%clk 0:00:18.3]} 125. Bf6 {[%clk 0:00:25]}
125... Ka4 {[%clk 0:00:18.2]} 126. Be5 {[%clk 0:00:25.6]} 126... a5 {[%clk
0:00:18.5]} 127. bxa5 {[%clk 0:00:25.5]} 127... Kxa5 {[%clk 0:00:19.4]} 128. Kc3
{[%clk 0:00:25.8]} 128... Kb6 {[%clk 0:00:18.3]} 129. Kd2 {[%clk 0:00:26.1]}
129... Kc6 {[%clk 0:00:18.4]} 130. Bd4 {[%clk 0:00:26]} 130... Kd5 {[%clk
0:00:18.4]} 131. Ba7 {[%clk 0:00:26.6]} 131... Ke4 {[%clk 0:00:18.7]} 132. Bb8
{[%clk 0:00:27]} 132... Bg4 {[%clk 0:00:18.9]} 133. b3 {[%clk 0:00:27.3]} 133...
Be6 {[%clk 0:00:19]} 134. a4 {[%clk 0:00:20.6]} 134... b4 {[%clk 0:00:19.1]}
135. a5 {[%clk 0:00:19.5]} 135... Bxb3 {[%clk 0:00:17.7]} 136. Bd6 {[%clk
0:00:20.1]} 136... Kf3 {[%clk 0:00:14.9]} 137. Kxd3 {[%clk 0:00:20.2]} 137...
Bd5 {[%clk 0:00:14.3]} 138. Bxb4 {[%clk 0:00:19.1]} 138... Kxg3 {[%clk
0:00:14.2]} 139. Bd6+ {[%clk 0:00:19.7]} 139... Kg2 {[%clk 0:00:13.2]} 140. Kd4
{[%clk 0:00:20.2]} 140... Ba8 {[%clk 0:00:13.3]} 141. Kc5 {[%clk 0:00:20.8]}
141... h4 {[%clk 0:00:13.6]} 142. Kb6 {[%clk 0:00:21.3]} 142... h3 {[%clk
0:00:14.5]} 143. Kc7 {[%clk 0:00:21.7]} 143... Bf3 {[%clk 0:00:15.4]} 144. a6
{[%clk 0:00:21.8]} 144... h2 {[%clk 0:00:16.3]} 145. Bxh2 {[%clk 0:00:21.5]}
145... Kxh2 {[%clk 0:00:17.2]} 146. a7 {[%clk 0:00:22.4]} 146... Bg2 {[%clk
0:00:17.6]} 147. a8=Q {[%clk 0:00:23.3]} 147... Bxa8 {[%clk 0:00:17.4]} 1/2-1/2